fUSD/lending_fUSD_20250510
["ID","MTS","AMOUNT","RATE_DAILY","PERIOD"]
[360544852,1746875431632,-352.66,0.00019178,2]
[360544853,1746875431642,-904.56,0.00019178,2]
[360544855,1746875431651,-904.56,0.00019178,2]
[360544857,1746875431661,-162.47,0.00019178,2]
[360544858,1746875431670,-352.66,0.00019178,2]
[360544860,1746875431680,-452.28,0.00019178,2]
[360544862,1746875431690,-352.66,0.00019178,2]
[360544864,1746875431699,-162.47,0.00019178,2]
[360544866,1746875431711,-162.47,0.00019178,2]
[360544868,1746875431721,-352.66,0.00019178,2]
[360544870,1746875431732,-300.93,0.00019178,2]
[360544872,1746875431741,-150.54,0.00019178,2]
[360544874,1746875431752,-452.28,0.00019178,2]
[360544875,1746875431762,-150.69,0.00019178,2]
[360544877,1746875431772,-333.55,0.00019178,2]
[360544879,1746875431781,-150.0,0.00019178,2]
[360544881,1746875431793,-452.36,0.00019178,2]
[360544883,1746875431803,-150.0,0.00019178,2]
[360544885,1746875431813,-1155.86,0.00019178,2]
[360544887,1746875431823,-302.47,0.00019178,2]
[360544889,1746875431832,-150.0,0.00019178,2]
[360544891,1746875431842,-150.04,0.00019178,2]
[360544893,1746875431852,-450.0,0.00019178,2]
[360544895,1746875431862,-1155.86,0.00019178,2]
[360544897,1746875431872,-903.92,0.00019178,2]
[360544899,1746875431882,-150.04,0.00019178,2]
[360544901,1746875431891,-1155.86,0.00019178,2]
[360544903,1746875431901,-150.0,0.00019178,2]
[360544905,1746875431911,-1156.1,0.00019178,2]
[360544907,1746875431921,-300.08,0.00019178,2]
[360544909,1746875431930,-452.28,0.00019178,2]
[360544911,1746875431941,-452.28,0.00019178,2]
[360544913,1746875431952,-352.59,0.00019178,2]
[360544915,1746875431962,-1156.1,0.00019178,2]
[360544917,1746875431972,-150.04,0.00019178,2]
[360544918,1746875431981,-150.0,0.00019178,2]
[360544920,1746875431991,-322.55,0.00019178,2]
[360544923,1746875432002,-162.47,0.00019178,2]
[360544925,1746875432012,-1156.1,0.00019178,2]
[360544926,1746875432022,-352.59,0.00019178,2]
[360544929,1746875432032,-450.04,0.00019178,2]
[360544931,1746875432042,-150.06,0.00019178,2]
[360544933,1746875432052,-452.28,0.00019178,2]
[360544935,1746875432062,-352.59,0.00019178,2]
[360544937,1746875432074,-162.47,0.00019178,2]
[360544939,1746875432084,-150.0,0.00019278,2]
[360544941,1746875432095,-452.28,0.000193,2]
[360544943,1746875432105,-803.1,0.000193,2]
[360544945,1746875432115,-352.43,0.000193,2]
[360544947,1746875432124,-150.06,0.000193,2]
[360544949,1746875432133,-150.06,0.000193,2]
[360544951,1746875432143,-324.94,0.000193,2]
[360544953,1746875432152,-803.1,0.000193,2]
[360544955,1746875432162,-457.06,0.000193,2]
[360544957,1746875432172,-150.0,0.000193,2]
[360544959,1746875432181,-452.28,0.000193,2]
[360544961,1746875432191,-352.59,0.000193,2]
[360544963,1746875432202,-542.99,0.00019383,2]
[360544965,1746875432211,-162.47,0.000194,2]
[360544968,1746875432234,-151.94,0.000194,2]
[360544970,1746875432244,-452.28,0.000194,2]
[360544972,1746875432255,-352.66,0.000194,2]
[360544974,1746875432267,-259.37,0.00019552,2]
[360544976,1746875432276,-701.09775836,0.00019556,2]
[360544978,1746875432287,-352.59,0.000196,2]
[360544980,1746875432296,-803.1,0.000196,2]
[360544982,1746875432307,-150.06,0.000196,2]
[360544984,1746875432316,-452.28,0.000196,2]
[360544986,1746875432326,-300.24,0.000196,2]
[360544988,1746875432336,-150.0,0.000196,2]
[360544990,1746875432347,-162.47,0.000196,2]
[360544992,1746875432357,-162.47,0.000196,2]
[360544994,1746875432367,-452.28,0.000196,2]
[360544996,1746875432377,-150.0,0.000196,2]
[360544998,1746875432387,-150.06,0.000196,2]
[360545000,1746875432398,-352.59,0.000196,2]
[360545002,1746875432408,-176.62389,0.000198,23]
[360545004,1746875432418,-150.06,0.000198,2]
[360545006,1746875432428,-1604.28,0.000198,2]
[360545008,1746875432438,-424.52,0.000198,2]
[360545010,1746875432448,-162.47,0.000198,2]
[360545011,1746875432458,-352.59,0.000198,2]
[360545012,1746875432467,-655.81124233,0.0001987,2]
[360545013,1746875432477,-300.0,0.00019892,2]
[360545014,1746875432489,-1597.3441,0.00019896,2]
[360545015,1746875432499,-2500.0,0.00019898,2]
[360545016,1746875432511,-335.59243001,0.00019899,2]
[360545017,1746875432522,-500.0,0.00019899,2]
[360545018,1746875432533,-500.0,0.00019899,2]
[360545019,1746875432543,-500.0,0.00019899,2]
[360545020,1746875432552,-260.85449005,0.00019899,2]
[360545021,1746875432562,-335.59242999,0.00019899,2]
[360545022,1746875432573,-335.59242999,0.00019899,2]
[360545023,1746875432583,-335.59242999,0.00019899,2]
[360545024,1746875432594,-335.59242999,0.00019899,2]
[360545025,1746875432604,-335.59242999,0.000199,2]
[360545026,1746875432614,-335.59242999,0.000199,2]
[360545027,1746875432625,-335.59242999,0.000199,2]
[360545028,1746875432635,-335.59242999,0.000199,2]
[360545029,1746875432645,-152.02735247,0.000199,2]
[360545030,1746875432660,-162.47,0.000199,2]
[360545031,1746875432672,-452.28,0.000199,2]
[360545032,1746875432683,-352.66,0.000199,2]
[360545034,1746875432694,-12500.0,0.000199,2]
[360545036,1746875432704,-171.5403616,0.000199,2]
[360545038,1746875432719,-2086.54779115,0.000199,2]
[360545040,1746875432729,-162.47,0.000199,2]
[360545042,1746875432740,-150.06,0.000199,2]
[360545044,1746875432751,-703.9,0.000199,2]
[360545046,1746875432762,-452.28,0.000199,2]
[360545048,1746875432772,-2898.25924664,0.000199,2]
[360545050,1746875432782,-335.59242999,0.000199,2]
[360545052,1746875432795,-150.0,0.000199,2]
[360545054,1746875432806,-452.28,0.000199,2]
[360545056,1746875432817,-352.59,0.000199,2]
[360545058,1746875432828,-150.06,0.000199,2]
[360545060,1746875432839,-162.47,0.000199,2]
[360545063,1746875432850,-452.28,0.000199,2]
[360545065,1746875432860,-150.06,0.000199,2]
[360545067,1746875432871,-956.34,0.000199,2]
[360545069,1746875432881,-493.29,0.000199,2]
[360545071,1746875432891,-324.86,0.000199,2]
[360545073,1746875432902,-596.06662415,0.000199,2]
[360545075,1746875432911,-167.96606201,0.000199,2]
[360545077,1746875432922,-367.26618081,0.000199,2]
[360545079,1746875432932,-456.28115352,0.000199,2]
[360545081,1746875432942,-508.0238435,0.00019973,2]
[360545083,1746875432953,-500.0,0.00019973,2]
[360545085,1746875432963,-500.0,0.00019973,2]
[360545087,1746875432973,-500.0,0.00019973,2]
[360545089,1746875432983,-500.0,0.00019973,2]
[360545091,1746875432993,-500.0,0.00019973,2]
[360545093,1746875433004,-196.0,0.0001999,2]
[360545095,1746875433014,-167.392,0.00019996,2]
[360545097,1746875433025,-18152.8205442,0.00019996,2]
[360545099,1746875433036,-808.2078377,0.00019996,2]
[360545101,1746875433048,-714.673569,0.00019996,2]
[360545103,1746875433059,-700.194,0.00019998,2]
[360545105,1746875433069,-1100.0,0.00019998,2]
[360545107,1746875433079,-400.0,0.00019998,2]
[360545109,1746875433089,-300.0,0.00019999,2]
[360545112,1746875433100,-253.73,0.00019999,2]
[360545113,1746875433110,-214.14646298,0.00019999,2]
[360545115,1746875433119,-450.0,0.00019999,2]
[360545116,1746875433129,-400.0,0.00019999,2]
[360545118,1746875433139,-223.30330334,0.00019999,2]
[360545120,1746875433149,-400.0,0.00019999,2]
[360545122,1746875433159,-400.0,0.00019999,2]
[360545124,1746875433170,-400.0,0.00019999,2]
[360545126,1746875433181,-1153.1,0.00019999,2]
[360545128,1746875433190,-1153.1,0.00019999,2]
[360545130,1746875433201,-1153.1,0.00019999,2]
[360545132,1746875433211,-1153.1,0.00019999,2]
[360545134,1746875433221,-1153.1,0.00019999,2]
[360545136,1746875433232,-1153.1,0.00019999,2]
[360545138,1746875433241,-1153.1,0.00019999,2]
[360545140,1746875433252,-1153.1,0.00019999,2]
[360545141,1746875433262,-1153.1,0.00019999,2]
[360545143,1746875433271,-1153.1,0.00019999,2]
[360545145,1746875433281,-1153.1,0.00019999,2]
[360545147,1746875433291,-1153.1,0.00019999,2]
[360545149,1746875433301,-1153.1,0.00019999,2]
[360545151,1746875433311,-1153.1,0.00019999,2]
[360545153,1746875433321,-1153.1,0.00019999,2]
[360545155,1746875433331,-1153.1,0.00019999,2]
[360545157,1746875433340,-1153.1,0.00019999,2]
[360545159,1746875433350,-1153.1,0.00019999,2]
[360545160,1746875433360,-1153.1,0.00019999,2]
[360545162,1746875433370,-1153.1,0.00019999,2]
[360545163,1746875433380,-1153.1,0.00019999,2]
[360545164,1746875433390,-1153.1,0.00019999,2]
[360545165,1746875433400,-1153.1,0.00019999,2]
[360545166,1746875433411,-1153.2686,0.00019999,2]
[360545167,1746875433422,-270.19472601,0.00019999,2]
[360545168,1746875433433,-164.19608739,0.00019999,2]
[360545169,1746875433443,-351.77157768,0.00019999,2]
[360545170,1746875433455,-179.97187166,0.00019999,2]
[360545171,1746875433465,-251974.66409206,0.0002,2]
[360545172,1746875433483,-26519.65084419,0.0002,2]
[360545173,1746875433496,-653.51,0.0002,2]
[360545174,1746875433509,-4213.2780331,0.0002,2]
[360545175,1746875433521,-2448.91933437,0.0002,2]
[360545176,1746875433532,-51045.03476726,0.0002,2]
[360545177,1746875433549,-298.86,0.0002,2]
[360545178,1746875433562,-2476.80862768,0.0002,2]
[360545179,1746875433574,-14717.62553537,0.0002,2]
[360545180,1746875433596,-26555.80691855,0.0002,2]
[360545181,1746875433609,-3588.90000002,0.0002,2]
[360545187,1746875437324,-3458.74567987,0.0002,2]
[360545189,1746875437428,-30067.70588264,0.0002,2]
[360545190,1746875437482,-61511.80412842,0.0002,2]
[360545191,1746875437494,-759.85375747,0.0002,2]
[360545198,1746875439472,-20539.06105198,0.0002,2]
[360545199,1746875439484,-1888.98,0.0002,2]
[360545200,1746875439574,-15437.9,0.0002,2]
[360545201,1746875439886,-5425.938516,0.0002,2]
[360545202,1746875439898,-1331.10000353,0.0002,2]
[360545203,1746875439910,-481.86551266,0.0002,2]
[360545206,1746875440165,-3376.91907897,0.0002,2]
[360545207,1746875440177,-797.6518777,0.0002,2]
[360545213,1746875443298,-1228.49761,0.0002,2]
[360545214,1746875443561,-256.71063788,0.0002,2]
[360545215,1746875443574,-934.3949999,0.0002,2]
[360545216,1746875443616,-301.00302701,0.0002,2]
[360545217,1746875443668,-1105.9,0.0002,2]
[360545218,1746875443681,-8749.99999999,0.0002,2]
[360545219,1746875443693,-585.44735288,0.0002,2]
[360545231,1746875445416,-2559.82380021,0.0002,2]
[360545232,1746875445471,-10867.25526452,0.0002,2]
[360545233,1746875445579,-9740.887661,0.0002,2]
[360545234,1746875445591,-13602.89335895,0.0002,2]
[360545235,1746875445867,-5180.0,0.0002,2]
[360545236,1746875445879,-2693.71689312,0.0002,2]
[360545237,1746875445896,-867.194902,0.0002,2]
[360545238,1746875445908,-6138.54824603,0.0002,2]
[360545239,1746875445920,-27372.12395072,0.0002,2]
[360545245,1746875463977,170.52828155,0.00013699,2]
[360545246,1746875464006,829.47171845,0.00013699,2]
[360545247,1746875515424,-250.0,0.00019,2]
[360545249,1746875586581,-250.0,0.00019,2]
[360545255,1746875718328,233.82,0.00030137,120]
[360545258,1746875740719,-250.0,0.00017,2]
[360545259,1746875766120,-250.0,0.00018905,2]
[360545263,1746875824316,-250.0,0.0001707,2]
[360545289,1746876287673,1333.0,0.0003,30]
[360545290,1746876299192,4228.0,0.0003,30]
[360545293,1746876326332,762.36784784,0.000108,2]
[360545295,1746876328653,1885.78615623,0.00011,2]
[360545296,1746876337406,1316.42643881,9e-05,2]
[360545297,1746876356288,1254.38741807,6.94e-05,2]
[360545300,1746876368379,1064.77354034,8e-05,2]
[360545302,1746876412770,500.0,0.00016438,2]
[360545303,1746876413169,500.0,0.00016438,2]
[360545304,1746876414379,500.0,0.00016438,2]
[360545305,1746876414763,500.0,0.00016438,2]
[360545306,1746876415079,500.0,0.00016438,2]
[360545310,1746876442479,3526.31623351,0.0001305,2]
[360545311,1746876461483,500.0,0.00016438,2]
[360545312,1746876461817,500.0,0.00016438,2]
[360545313,1746876462129,500.0,0.00016438,2]
[360545314,1746876462609,500.0,0.00016438,2]
[360545315,1746876463182,500.0,0.00016438,2]
[360545316,1746876475216,4283.01315096,0.00013,2]
[360545317,1746876478436,2332.55079483,0.0001,2]
[360545319,1746876485900,-158.32,0.00016712,2]
[360545320,1746876485929,-91.68,0.0001707,2]
[360545327,1746876546142,-349.34,0.0001707,2]
[360545334,1746876572268,-250.0,0.00018384,2]
[360545356,1746876631481,-250.0,0.00018384,2]
[360545358,1746876631492,-250.0,0.00018464,2]
[360545359,1746876631502,-1592.54521618,0.00018544,2]
[360545360,1746876631514,-365.19994533,0.00018544,2]
[360545361,1746876631536,-382.42483849,0.00018544,2]
[360545362,1746876631546,-783.83798792,0.00018562,2]
[360545363,1746876631557,-216.16201208,0.00018562,2]
[360545364,1746876631567,-200.0,0.00018674,2]
[360545365,1746876631576,-194.34,0.0001876,2]
[360545366,1746876631586,-156.20860496,0.00018861,2]
[360545367,1746876631595,-393.32723315,0.00018877,2]
[360545368,1746876631607,-806.67276685,0.00018877,2]
[360545369,1746876631616,-292.22723315,0.00018878,2]
[360545370,1746876631627,-7.77276685,0.00018878,2]
[360545371,1746876631637,-300.0,0.00018878,2]
[360545372,1746876631646,-256.31863551,0.00018879,2]
[360545373,1746876631657,-2883.0194234,0.00018879,2]
[360545374,1746876631669,-610.44814184,0.00018879,2]
[360545375,1746876631680,-970.99304133,0.00018879,2]
[360545376,1746876631691,-1133.86075792,0.00018879,2]
[360545377,1746876631701,-12.152072,0.00018905,2]
[360545378,1746876631710,-150.0,0.00018922,2]
[360545379,1746876631719,-207.4,0.00018954,2]
[360545380,1746876631729,-343.00870409,0.00019,2]
[360545381,1746876631742,-571.82902873,0.00019,2]
[360545382,1746876631752,-300.0,0.00019,2]
[360545383,1746876631761,-55.78611127,0.00019,2]
[360545384,1746876631777,-1073.90425003,0.00019,2]
[360545385,1746876631789,-2944.87234792,0.00019,2]
[360545386,1746876631800,-312.5,0.00019,2]
[360545387,1746876631811,-11770.88052306,0.00019,2]
[360545388,1746876631820,-668.65185757,0.00019018,2]
[360545389,1746876631829,-252.62,0.0001903,2]
[360545390,1746876631840,-23900.0,0.0001903,2]
[360545391,1746876631850,-1567.52,0.0001904,2]
[360545392,1746876631859,-159.99,0.0001912,2]
[360545393,1746876631868,-1631.6,0.00019145,2]
[360545395,1746876631878,-452.28,0.00019178,2]
[360545397,1746876631887,-459.35,0.00019178,2]
[360545399,1746876631895,-162.47,0.00019178,2]
[360545401,1746876631904,-903.96,0.00019178,2]
[360545403,1746876631913,-162.47,0.00019178,2]
[360545405,1746876631922,-150.06,0.00019178,2]
[360545406,1746876631931,-710.38,0.00019178,2]
[360545408,1746876631940,-162.47,0.00019178,2]
[360545410,1746876631949,-452.28,0.00019178,2]
[360545412,1746876631958,-352.59,0.00019178,2]
[360545414,1746876631967,-150.06,0.00019178,2]
[360545416,1746876631976,-705.25,0.00019178,2]
[360545418,1746876631987,-452.28,0.00019178,2]
[360545420,1746876631996,-352.66,0.00019178,2]
[360545422,1746876632005,-352.66,0.00019178,2]
[360545424,1746876632015,-164.68,0.00019193,2]
[360545426,1746876632026,-268.61,0.000192,2]
[360545427,1746876632036,-162.47,0.00019278,2]
[360545428,1746876632045,-352.59,0.00019278,2]
[360545429,1746876632054,-150.06,0.00019278,2]
[360545430,1746876632064,-691.02,0.00019334,2]
[360545431,1746876632074,-200.0,0.00019409,2]
[360545432,1746876632083,-150.0,0.000195,2]
[360545433,1746876632095,-14016.69769426,0.00019621,2]
[360545434,1746876632105,-176.62389244,0.000198,23]
[360545435,1746876632114,-491.21531966,0.000198,2]
[360545436,1746876632124,-250.0,0.00019819,2]
[360545437,1746876632135,-1075.0,0.00019856,2]
[360545438,1746876632144,-165.4256,0.00019894,2]
[360545439,1746876632154,-226.6188,0.00019894,2]
[360545440,1746876632166,-317.402,0.00019894,2]
[360545441,1746876632175,-178.17720772,0.00019894,2]
[360545442,1746876632185,-500.0,0.000199,2]
[360545443,1746876632195,-1501.0693,0.000199,2]
[360545444,1746876632204,-183.3773,0.000199,2]
[360545445,1746876632213,-529.46990188,0.000199,2]
[360545447,1746876632222,-236.95743258,0.000199,2]
[360545448,1746876632231,-2073.58347131,0.000199,2]
[360545451,1746876632244,-178.17720771,0.000199,2]
[360545452,1746876632254,-166.92025235,0.000199,2]
[360545454,1746876632264,-181.4072505,0.000199,2]
[360545456,1746876632273,-441.07178191,0.000199,2]
[360545458,1746876632282,-350.49104009,0.00019932,2]
[360545460,1746876632291,-500.0,0.00019973,2]
[360545462,1746876632301,-500.0,0.00019973,2]
[360545464,1746876632310,-500.0,0.00019973,2]
[360545466,1746876632319,-500.0,0.00019973,2]
[360545468,1746876632329,-500.0,0.00019973,2]
[360545470,1746876632339,-195.65049889,0.00019993,2]
[360545472,1746876632349,-78290.60989828,0.00019994,2]
[360545475,1746876632362,-906.39902766,0.00019994,2]
[360545478,1746876632379,-1285.43345116,0.00019994,2]
[360545480,1746876632388,-3399.1889267,0.00019994,2]
[360545482,1746876632397,-4019.9479577,0.00019994,2]
[360545483,1746876632407,-560.155,0.00019996,2]
[360545485,1746876632416,-500.0,0.00019999,2]
[360545487,1746876632426,-283.08598319,0.00019999,2]
[360545489,1746876632435,-277.10364229,0.00019999,2]
[360545491,1746876632444,-243.16,0.00019999,2]
[360545493,1746876632454,-400.0,0.00019999,2]
[360545495,1746876632463,-266.7,0.00019999,2]
[360545497,1746876632473,-202.83604634,0.00019999,2]
[360545499,1746876632483,-246.24010437,0.00019999,2]
[360545502,1746876632494,-32061.35617704,0.0002,2]
[360545504,1746876632505,-13468.54166556,0.0002,2]
[360545506,1746876632516,-2374.49246916,0.0002,2]
[360545509,1746876632535,-34102.32743783,0.0002,2]
[360545511,1746876632546,-6085.71634707,0.0002,2]
[360545722,1746876637501,-263.70636244,0.0002,2]
[360545724,1746876637513,-62205.66498458,0.0002,2]
[360545725,1746876637523,-1500.0,0.0002,2]
[360545726,1746876637532,-83306.67028635,0.0002,2]
[360545727,1746876637543,-442.38249716,0.0002,2]
[360545728,1746876637555,-252.14209176,0.0002,2]
[360545729,1746876637566,-11568.6154122,0.0002,2]
[360545730,1746876637578,-5447.46272893,0.0002,2]
[360545731,1746876637590,-3765.3254078,0.0002,2]
[360545732,1746876637601,-358.33485164,0.0002,2]
[360545733,1746876637612,-61731.34426273,0.0002,2]
[360545734,1746876637623,-1590.06608101,0.0002,2]
[360545735,1746876637733,-689.32368187,0.0002,2]
[360545745,1746876639697,-1385.47993132,0.0002,2]
[360545746,1746876640039,-5650.17711438,0.0002,2]
[360545747,1746876640069,-1500.0,0.0002,2]
[360545779,1746876642625,-389.45814409,0.00019999,2]
[360545782,1746876642635,-141.12388219,0.0002,2]
[360545802,1746876642738,-5956.6798784,0.0002,2]
[360545808,1746876645589,-897.58999998,0.0002,2]
[360545809,1746876645644,-7437.72115713,0.0002,2]
[360545812,1746876813553,232.51644824,0.00019452,2]
[360545813,1746876843868,17.48355176,0.00019092,2]
[360545814,1746876868498,202.77097982,0.0003,30]
[360545815,1746876955841,150.0,0.00019049,2]
[360545816,1746876959316,2624.05771931,0.0003,120]
[360545817,1746877047711,195.54,0.0001905,2]
[360545820,1746877119633,200.0,0.00019028,2]
[360545821,1746877136107,500.0,0.00016438,2]
[360545822,1746877137162,500.0,0.00016438,2]
[360545823,1746877137494,500.0,0.00016438,2]
[360545824,1746877137814,500.0,0.00016438,2]
[360545825,1746877138163,309.51153922,0.00016438,2]
[360545826,1746877163756,500.0,0.00016438,2]
[360545827,1746877164096,500.0,0.00016438,2]
[360545828,1746877164425,134.66866754,0.00016438,2]
[360545829,1746877164448,365.33133246,0.00016438,2]
[360545830,1746877165006,500.0,0.00016438,2]
[360545831,1746877165651,500.0,0.00016438,2]
[360545832,1746877175066,666.16,0.0001712,2]
[360545833,1746877192864,1000.0,0.00013699,2]
[360545834,1746877212744,958.2288743,0.00019,2]
[360545835,1746877212767,449.1911257,0.00019,2]
[360545836,1746877245566,-250.0,0.00019092,2]
[360545837,1746877283503,-250.0,0.00019092,2]
[360545838,1746877336134,-195.79235064,0.00019092,2]
[360546247,1746877392321,-300.96848016,0.00019092,2]
[360546248,1746877423454,1000.0,0.0001902,2]
[360546249,1746877460620,-2000.0,0.00023,15]
[360546250,1746877465642,-200.0,0.00019092,2]
[360546251,1746877477091,-200.0,0.00019092,2]
[360546252,1746877477573,878.08,0.00019043,2]
[360546253,1746877487598,-200.0,0.00019092,2]
[360546263,1746877506202,1662.44908106,0.00019,2]
[360546264,1746877506225,1354.94091894,0.00019,2]
[360546265,1746877507970,2634.77928782,0.00019,2]
[360546266,1746877507993,382.61071218,0.00019,2]
[360546267,1746877530898,250.0,0.00017,2]
[360546268,1746877531982,300.0,0.00019,2]
[360546269,1746877535979,-305.9846205,0.00019092,2]
[360546270,1746877593090,-189.45479173,0.00019092,2]
[360546271,1746877627948,-305.9846205,0.00019092,2]
[360546272,1746877664871,-166.66,0.00019092,2]
[360546273,1746877674399,1828.91,0.00019025,2]
[360546274,1746877706411,-168.74,0.00019092,2]
[360546279,1746877741384,-390.584626,0.00019092,2]
[360546282,1746877761419,-338.84128366,0.00019092,2]
[360546286,1746877775787,-203.28344934,0.00019092,2]
[360546288,1746877787822,-196.55355446,0.00019092,2]
[360546291,1746877798803,-180.01,0.00019092,2]
[360546292,1746877805755,1228.19949458,0.00019,2]
[360546293,1746877805779,3989.72020676,0.00019,2]
[360546294,1746877805800,2906.29029866,0.00019,2]
[360546295,1746877807533,1083.4299081,0.00019,2]
[360546296,1746877807556,3989.72020676,0.00019,2]
[360546297,1746877807580,3051.05988514,0.00019,2]
[360546298,1746877809253,938.66032162,0.00019,2]
[360546299,1746877809276,3989.72020676,0.00019,2]
[360546300,1746877813199,-151.0,0.00019,2]
[360546301,1746877828233,-250.0,0.00018905,2]
[360546303,1746877831700,-470.69720462,0.00018905,2]
[360546304,1746877831713,-223.28215438,0.00018905,2]
[360546305,1746877831723,-3044.82947162,0.00019,2]
[360546306,1746877831733,-173.51889727,0.00019065,2]
[360546307,1746877831742,-2678.23712999,0.00019092,2]
[360546308,1746877831805,-1062.56154126,0.00019092,2]
[360546309,1746877831817,-250.0,0.00019165,2]
[360546310,1746877831828,-666.16,0.00019384,2]
[360546311,1746877831839,-207.4,0.00019888,2]
[360546312,1746877831849,-87.27050232,0.00019895,2]
[360546313,1746877832324,-112.72949768,0.00019895,2]
[360546314,1746877832334,-200.0,0.00019897,2]
[360546315,1746877832343,-300.0,0.00019898,2]
[360546316,1746877832352,-1200.0,0.00019899,2]
[360546317,1746877832366,-173.51889727,0.00019899,2]
[360546318,1746877832376,-7695.6378,0.000199,2]
[360546319,1746877832385,-10911.4961,0.000199,2]
[360546320,1746877832395,-226.6188,0.000199,2]
[360546321,1746877832405,-6717.4972,0.000199,2]
[360546322,1746877832414,-152.02735247,0.000199,2]
[360546323,1746877832424,-181.4072505,0.000199,2]
[360546324,1746877832433,-474.09829272,0.000199,2]
[360546325,1746877832442,-681.40895787,0.000199,2]
[360546326,1746877832452,-200.0,0.00019916,2]
[360546327,1746877832465,-500.0,0.00019973,2]
[360546328,1746877832475,-500.0,0.00019973,2]
[360546329,1746877832484,-500.0,0.00019973,2]
[360546330,1746877832494,-168.74,0.00019987,2]
[360546331,1746877832506,-448.124,0.00019996,2]
[360546332,1746877832515,-1043.7777748,0.00019996,2]
[360546333,1746877832524,-500.0,0.00019998,2]
[360546334,1746877832535,-400.0,0.00019999,2]
[360546335,1746877832545,-400.0,0.00019999,2]
[360546336,1746877832554,-400.0,0.00019999,2]
[360546337,1746877832564,-400.0,0.00019999,2]
[360546338,1746877832576,-400.0,0.00019999,2]
[360546339,1746877832585,-400.0,0.00019999,2]
[360546340,1746877832596,-400.0,0.00019999,2]
[360546341,1746877832606,-400.0,0.00019999,2]
[360546342,1746877832616,-476.99185505,0.00019999,2]
[360546343,1746877832626,-400.0,0.00019999,2]
[360546344,1746877832635,-450.0,0.00019999,2]
[360546345,1746877832645,-228.71821236,0.00019999,2]
[360546346,1746877832654,-223.76665393,0.00019999,2]
[360546347,1746877832664,-450.0,0.00019999,2]
[360546348,1746877832673,-210.77586912,0.00019999,2]
[360546349,1746877832682,-400.0,0.00019999,2]
[360546350,1746877832691,-400.0,0.00019999,2]
[360546351,1746877832701,-239.95,0.00019999,2]
[360546352,1746877832712,-400.0,0.00019999,2]
[360546353,1746877832721,-400.0,0.00019999,2]
[360546354,1746877832731,-400.0,0.00019999,2]
[360546355,1746877832740,-305.20290868,0.00019999,2]
[360546356,1746877832750,-243.73089643,0.00019999,2]
[360546357,1746877832759,-400.0,0.00019999,2]
[360546358,1746877832768,-400.0,0.00019999,2]
[360546359,1746877832778,-400.0,0.00019999,2]
[360546360,1746877832787,-400.0,0.00019999,2]
[360546361,1746877832797,-400.0,0.00019999,2]
[360546362,1746877832807,-400.0,0.00019999,2]
[360546363,1746877832816,-400.0,0.00019999,2]
[360546364,1746877832825,-400.0,0.00019999,2]
[360546365,1746877832836,-213.64414542,0.00019999,2]
[360546366,1746877832846,-306.07281774,0.00019999,2]
[360546367,1746877832855,-125.25454666,0.00019999,2]
[360546370,1746877838049,-157.5513519,0.000199,2]
[360546372,1746877838059,-274.74545334,0.00019999,2]